[Event "NJSK 2024 C"]
[Site "Groningen, Netherlands"]
[Date "2024.04.30"]
[Round "5.13"]
[White "Kors, Siebe"]
[Black "Winter, Sven"]
[Result "0-1"]
[TimeControl "90min/40moves + 30min + 30sec/move"]
[WhiteElo "1668"]
[BlackElo "1768"]

1. e4 {[%clk 01:30:58]} {[%emt 00:00:01]} c6 {[%clk 01:30:38]} {[%emt
00:00:22]} 2. d4 {[%clk 01:31:17]} {[%emt 00:00:11]} d5 {[%clk 01:31:03]}
{[%emt 00:00:06]} 3. e5 {[%clk 01:31:33]} {[%emt 00:00:13]} c5 {[%clk
01:31:27]} {[%emt 00:00:06]} 4. c3 {[%clk 01:31:16]} {[%emt 00:00:47]} Nc6
{[%clk 01:31:49]} {[%emt 00:00:08]} 5. Nf3 {[%clk 01:31:21]} {[%emt 00:00:25]}
cxd4 {[%clk 01:32:13]} {[%emt 00:00:07]} 6. cxd4 {[%clk 01:31:19]} {[%emt
00:00:31]} Bg4 {[%clk 01:32:36]} {[%emt 00:00:07]} 7. Bb5 {[%clk 01:31:29]}
{[%emt 00:00:20]} e6 {[%clk 01:32:49]} {[%emt 00:00:17]} 8. O-O {[%clk
01:29:09]} {[%emt 00:02:48]} Nge7 {[%clk 01:33:02]} {[%emt 00:00:19]} 9. Nc3
{[%clk 01:24:23]} {[%emt 00:05:15]} Nf5 {[%clk 01:33:21]} {[%emt 00:00:13]} 10.
Be3 {[%clk 01:21:34]} {[%emt 00:03:17]} Be7 {[%clk 01:33:43]} {[%emt 00:00:09]}
11. h3 {[%clk 01:19:30]} {[%emt 00:02:33]} Bxf3 {[%clk 01:31:34]} {[%emt
00:02:39]} 12. Qxf3 {[%clk 01:18:23]} {[%emt 00:01:37]} O-O {[%clk 01:31:43]}
{[%emt 00:00:23]} 13. a3 {[%clk 01:04:00]} {[%emt 00:14:53]} Ncxd4 {[%clk
01:31:51]} {[%emt 00:00:21]} 14. Bxd4 {[%clk 01:03:47]} {[%emt 00:00:43]} Nxd4
{[%clk 01:32:12]} {[%emt 00:00:09]} 15. Qd1 {[%clk 00:58:38]} {[%emt 00:05:37]}
Nc6 {[%clk 01:32:31]} {[%emt 00:00:13]} 16. Bxc6 {[%clk 00:55:14]} {[%emt
00:03:54]} bxc6 {[%clk 01:32:56]} {[%emt 00:00:06]} 17. Ne2 {[%clk 00:55:06]}
{[%emt 00:00:37]} c5 {[%clk 01:32:50]} {[%emt 00:00:36]} 18. Qd3 {[%clk
00:40:50]} {[%emt 00:14:46]} Rb8 {[%clk 01:33:07]} {[%emt 00:00:13]} 19. Rab1
{[%clk 00:39:57]} {[%emt 00:01:21]} c4 {[%clk 01:33:28]} {[%emt 00:00:11]} 20.
Qc3 {[%clk 00:39:20]} {[%emt 00:01:07]} Rb3 {[%clk 01:33:40]} {[%emt 00:00:18]}
21. Qd4 {[%clk 00:37:41]} {[%emt 00:02:08]} Qb6 {[%clk 01:34:00]} {[%emt
00:00:11]} 22. Qxb6 {[%clk 00:35:26]} {[%emt 00:02:46]} Rxb6 {[%clk 01:34:23]}
{[%emt 00:00:07]} 23. Rfd1 {[%clk 00:35:02]} {[%emt 00:00:52]} Rfb8 {[%clk
01:34:42]} {[%emt 00:00:11]} 24. Rd2 {[%clk 00:34:14]} {[%emt 00:01:18]} Bxa3
{[%clk 01:35:03]} {[%emt 00:00:10]} 25. Ra1 {[%clk 00:33:08]} {[%emt 00:01:36]}
Bxb2 {[%clk 01:35:26]} {[%emt 00:00:08]} 26. Rxa7 {[%clk 00:33:20]} {[%emt
00:00:18]} Bxe5 {[%clk 01:35:47]} {[%emt 00:00:09]} 27. g3 {[%clk 00:32:36]}
{[%emt 00:01:13]} c3 {[%clk 01:36:10]} {[%emt 00:00:08]} 28. Rda2 {[%clk
00:32:05]} {[%emt 00:01:00]} d4 {[%clk 01:36:22]} {[%emt 00:00:18]} 29. R2a3
{[%clk 00:29:22]} {[%emt 00:03:13]} c2 {[%clk 01:36:19]} {[%emt 00:00:33]} 30.
Kg2 {[%clk 00:27:14]} {[%emt 00:02:38]} Rb1 {[%clk 01:35:57]} {[%emt 00:00:51]}
31. Nc1 {[%clk 00:22:55]} {[%emt 00:04:48]} Rxc1 {[%clk 01:36:17]} {[%emt
00:00:12]} 32. Ra8 {[%clk 00:23:03]} {[%emt 00:00:22]} Rcb1 {[%clk 01:36:25]}
{[%emt 00:00:22]} 0-1

[Event "NJSK 2024 C"]
[Site "Groningen, Netherlands"]
[Date "2024.04.30"]
[Round "5.14"]
[White "Stylianou, Alexandros"]
[Black "Van Haaften, Jelle"]
[Result "0-1"]
[TimeControl "90min/40moves + 30min + 30sec/move"]
[WhiteElo "1642"]
[BlackElo "1655"]

1. d4 {[%clk 01:30:59]} Nf6 {[%clk 01:30:57]} {[%emt 00:00:02]} 2. c4 {[%clk
01:31:20]} {[%emt 00:00:10]} g6 {[%clk 01:31:22]} {[%emt 00:00:05]} 3. Nc3
{[%clk 01:31:39]} {[%emt 00:00:11]} Bg7 {[%clk 01:31:46]} {[%emt 00:00:05]} 4.
Nf3 {[%clk 01:31:59]} {[%emt 00:00:11]} O-O {[%clk 01:31:59]} {[%emt 00:00:16]}
5. Bf4 {[%clk 01:32:18]} {[%emt 00:00:12]} d6 {[%clk 01:32:22]} {[%emt
00:00:07]} 6. e3 {[%clk 01:32:18]} {[%emt 00:00:30]} Nbd7 {[%clk 01:32:43]}
{[%emt 00:00:08]} 7. Bd3 {[%clk 01:32:28]} {[%emt 00:00:21]} Ne8 {[%clk
01:31:28]} {[%emt 00:01:44]} 8. O-O {[%clk 01:32:14]} {[%emt 00:00:45]} e5
{[%clk 01:30:55]} {[%emt 00:01:02]} 9. Bg5 {[%clk 01:29:17]} {[%emt 00:03:28]}
f6 {[%clk 01:30:44]} {[%emt 00:00:41]} 10. Bh4 {[%clk 01:28:43]} {[%emt
00:01:04]} Kh8 {[%clk 01:24:57]} {[%emt 00:06:17]} 11. Nd2 {[%clk 01:23:05]}
{[%emt 00:06:08]} Rg8 {[%clk 01:12:24]} {[%emt 00:13:03]} 12. f3 {[%clk
01:15:32]} {[%emt 00:08:04]} g5 {[%clk 01:09:47]} {[%emt 00:03:06]} 13. Bf2
{[%clk 01:13:51]} {[%emt 00:02:11]} Nf8 {[%clk 01:09:34]} {[%emt 00:00:42]} 14.
Qb3 {[%clk 01:08:12]} {[%emt 00:06:10]} f5 {[%clk 01:06:27]} {[%emt 00:03:36]}
15. c5 {[%clk 01:06:51]} {[%emt 00:01:52]} Ng6 {[%clk 00:57:39]} {[%emt
00:09:18]} 16. Ne2 {[%clk 00:57:36]} {[%emt 00:09:45]} dxc5 {[%clk 00:53:37]}
{[%emt 00:04:32]} 17. dxc5 {[%clk 00:55:04]} {[%emt 00:03:02]} Be6 {[%clk
00:50:55]} {[%emt 00:03:12]} 18. Nc4 {[%clk 00:53:22]} {[%emt 00:02:12]} Nf6
{[%clk 00:45:06]} {[%emt 00:06:18]} 19. Rfd1 {[%clk 00:52:35]} {[%emt
00:01:18]} Qe7 {[%clk 00:44:30]} {[%emt 00:01:06]} 20. e4 {[%clk 00:51:03]}
{[%emt 00:02:01]} f4 {[%clk 00:44:27]} {[%emt 00:00:34]} 21. Rab1 {[%clk
00:46:47]} {[%emt 00:04:46]} Rad8 {[%clk 00:41:05]} {[%emt 00:03:52]} 22. Qxb7
{[%clk 00:43:32]} {[%emt 00:03:44]} Rxd3 {[%clk 00:39:48]} {[%emt 00:01:47]} 23.
Rxd3 {[%clk 00:43:44]} {[%emt 00:00:19]} Bxc4 {[%clk 00:40:10]} {[%emt
00:00:08]} 24. Rd2 {[%clk 00:43:52]} {[%emt 00:00:23]} g4 {[%clk 00:39:44]}
{[%emt 00:00:55]} 25. Nc3 {[%clk 00:43:06]} {[%emt 00:01:16]} gxf3 {[%clk
00:38:49]} {[%emt 00:01:25]} 26. gxf3 {[%clk 00:43:09]} {[%emt 00:00:26]} Bf8
{[%clk 00:35:50]} {[%emt 00:03:29]} 27. Kh1 {[%clk 00:42:12]} {[%emt 00:01:28]}
Qe6 {[%clk 00:34:29]} {[%emt 00:01:51]} 28. Ne2 {[%clk 00:38:32]} {[%emt
00:04:09]} Bxe2 {[%clk 00:34:01]} {[%emt 00:00:58]} 29. Rxe2 {[%clk 00:38:44]}
{[%emt 00:00:19]} Qh3 {[%clk 00:34:17]} {[%emt 00:00:13]} 30. Qb3 {[%clk
00:38:54]} {[%emt 00:00:21]} Nd7 {[%clk 00:24:46]} {[%emt 00:10:00]} 31. Qc3
{[%clk 00:34:19]} {[%emt 00:05:05]} Bxc5 {[%clk 00:18:09]} {[%emt 00:07:07]} 32.
Bxc5 {[%clk 00:33:04]} {[%emt 00:01:45]} Nxc5 {[%clk 00:17:04]} {[%emt
00:01:35]} 33. Rg1 {[%clk 00:31:33]} {[%emt 00:02:00]} Ne6 {[%clk 00:16:27]}
{[%emt 00:01:08]} 34. Rf2 {[%clk 00:30:17]} {[%emt 00:01:45]} Nd4 {[%clk
00:15:58]} {[%emt 00:01:00]} 35. Rfg2 {[%clk 00:17:54]} {[%emt 00:12:53]} Qxf3
{[%clk 00:14:40]} {[%emt 00:01:48]} 36. Qxf3 {[%clk 00:18:09]} {[%emt
00:00:15]} Nxf3 {[%clk 00:14:57]} {[%emt 00:00:12]} 37. Rc1 {[%clk 00:18:22]}
{[%emt 00:00:17]} Rg7 {[%clk 00:14:44]} {[%emt 00:00:43]} 38. Rgc2 {[%clk
00:17:35]} {[%emt 00:01:18]} Ng5 {[%clk 00:11:51]} {[%emt 00:03:22]} 39. Rxc7
{[%clk 00:17:21]} {[%emt 00:00:45]} Nxe4 {[%clk 00:12:03]} {[%emt 00:00:18]} 40.
Rxg7 {[%clk 00:17:08]} {[%emt 00:00:42]} Kxg7 {[%clk 00:12:27]} {[%emt
00:00:06]} 41. Rc7+ {[%clk 00:17:19]} {[%emt 00:00:19]} Kf6 {[%clk 00:12:41]}
{[%emt 00:00:17]} 42. Rxa7 {[%clk 00:17:39]} {[%emt 00:00:10]} Ne7 {[%clk
00:11:36]} {[%emt 00:01:35]} 43. b4 {[%clk 00:17:45]} {[%emt 00:00:24]} f3
{[%clk 00:11:49]} {[%emt 00:00:17]} 44. b5 {[%clk 00:16:53]} {[%emt 00:01:21]}
Nd5 {[%clk 00:11:33]} {[%emt 00:00:46]} 45. b6 {[%clk 00:16:56]} {[%emt
00:00:28]} f2 {[%clk 00:11:29]} {[%emt 00:00:34]} 46. Kg2 {[%clk 00:15:56]}
{[%emt 00:01:29]} Ne3+ {[%clk 00:11:29]} {[%emt 00:00:30]} 47. Kf3 {[%clk
00:16:01]} {[%emt 00:00:25]} f1=Q+ {[%clk 00:11:52]} {[%emt 00:00:08]} 48. Kxe3
{[%clk 00:16:22]} {[%emt 00:00:08]} Qf4+ {[%clk 00:12:08]} {[%emt 00:00:13]} 49.
Kd3 {[%clk 00:16:08]} {[%emt 00:00:46]} Nc5+ {[%clk 00:12:27]} {[%emt
00:00:11]} 50. Ke2 {[%clk 00:15:59]} {[%emt 00:00:39]} Qxh2+ {[%clk 00:11:56]}
{[%emt 00:01:01]} 51. Ke3 {[%clk 00:16:12]} {[%emt 00:00:16]} Qg3+ {[%clk
00:12:07]} {[%emt 00:00:19]} 52. Kd2 {[%clk 00:16:21]} {[%emt 00:00:21]} Qd3+
{[%clk 00:12:26]} {[%emt 00:00:12]} 53. Kc1 {[%clk 00:16:16]} {[%emt 00:00:34]}
Qe2 {[%clk 00:12:38]} {[%emt 00:00:18]} 0-1

[Event "NJSK 2024 C"]
[Site "Groningen, Netherlands"]
[Date "2024.05.01"]
[Round "6.1"]
[White "Ritzerveld, Noah"]
[Black "Chua, Ethan"]
[Result "1-0"]
[TimeControl "90min/40moves + 30min + 30sec/move"]
[WhiteElo "2103"]
[BlackElo "2000"]

1. e4 {[%clk 01:30:58]} {[%emt 00:00:01]} c6 {[%clk 01:30:27]} {[%emt
00:00:33]} 2. d4 {[%clk 01:31:25]} {[%emt 00:00:04]} d5 {[%clk 01:30:54]}
{[%emt 00:00:03]} 3. Nc3 {[%clk 01:31:52]} {[%emt 00:00:04]} dxe4 {[%clk
01:31:21]} {[%emt 00:00:03]} 4. Nxe4 {[%clk 01:32:19]} {[%emt 00:00:03]} Nf6
{[%clk 01:31:47]} {[%emt 00:00:04]} 5. Nxf6+ {[%clk 01:32:44]} {[%emt
00:00:04]} exf6 {[%clk 01:32:14]} {[%emt 00:00:03]} 6. c3 {[%clk 01:33:09]}
{[%emt 00:00:05]} Bd6 {[%clk 01:32:41]} {[%emt 00:00:03]} 7. Bd3 {[%clk
01:33:36]} {[%emt 00:00:03]} O-O {[%clk 01:32:59]} {[%emt 00:00:11]} 8. Qc2
{[%clk 01:34:05]} {[%emt 00:00:03]} Re8+ {[%clk 01:33:25]} {[%emt 00:00:04]} 9.
Ne2 {[%clk 01:34:31]} {[%emt 00:00:03]} f5 {[%clk 01:33:46]} {[%emt 00:00:09]}
10. Bxf5 {[%clk 01:29:01]} {[%emt 00:06:00]} Bxf5 {[%clk 01:34:12]} {[%emt
00:00:05]} 11. Qxf5 {[%clk 01:29:23]} {[%emt 00:00:07]} Nd7 {[%clk 01:34:39]}
{[%emt 00:00:03]} 12. Be3 {[%clk 01:27:28]} {[%emt 00:02:25]} Nb6 {[%clk
01:33:44]} {[%emt 00:01:26]} 13. O-O {[%clk 01:25:57]} {[%emt 00:02:00]} Nc4
{[%clk 01:33:59]} {[%emt 00:00:15]} 14. Ng3 {[%clk 01:13:18]} {[%emt 00:13:09]}
g6 {[%clk 01:23:44]} {[%emt 00:10:45]} 15. Qf3 {[%clk 01:09:57]} {[%emt
00:03:50]} Qe7 {[%clk 01:13:45]} {[%emt 00:10:30]} 16. b3 {[%clk 00:57:08]}
{[%emt 00:13:19]} Nxe3 {[%clk 01:11:07]} {[%emt 00:03:08]} 17. Rfe1 {[%clk
00:56:19]} {[%emt 00:01:19]} Qh4 {[%clk 01:10:53]} {[%emt 00:00:45]} 18. Rxe3
{[%clk 00:54:39]} {[%emt 00:02:09]} Bf4 {[%clk 01:07:00]} {[%emt 00:04:23]} 19.
Re2 {[%clk 00:54:16]} {[%emt 00:00:53]} Rxe2 {[%clk 01:04:16]} {[%emt
00:03:15]} 20. Qxe2 {[%clk 00:54:24]} {[%emt 00:00:21]} Rd8 {[%clk 01:02:21]}
{[%emt 00:02:25]} 21. Re1 {[%clk 00:52:04]} {[%emt 00:02:50]} c5 {[%clk
01:01:17]} {[%emt 00:01:35]} 22. dxc5 {[%clk 00:49:11]} {[%emt 00:03:22]} Rd2
{[%clk 00:58:42]} {[%emt 00:03:04]} 23. Qe7 {[%clk 00:45:16]} {[%emt 00:04:26]}
Qh6 {[%clk 00:43:32]} {[%emt 00:15:39]} 24. Qxb7 {[%clk 00:40:43]} {[%emt
00:05:05]} Rxa2 {[%clk 00:43:54]} {[%emt 00:00:08]} 25. Qc8+ {[%clk 00:38:45]}
{[%emt 00:02:27]} Kg7 {[%clk 00:44:03]} {[%emt 00:00:21]} 26. Qg4 {[%clk
00:37:54]} {[%emt 00:01:20]} Kf8 {[%clk 00:41:36]} {[%emt 00:02:58]} 27. c6
{[%clk 00:37:17]} {[%emt 00:01:08]} Bxg3 {[%clk 00:38:43]} {[%emt 00:03:21]} 28.
Qb4+ {[%clk 00:36:47]} {[%emt 00:01:01]} Kg7 {[%clk 00:38:24]} {[%emt
00:00:49]} 29. Qd4+ {[%clk 00:37:12]} {[%emt 00:00:06]} 1-0

[Event "NJSK 2024 C"]
[Site "Groningen, Netherlands"]
[Date "2024.05.01"]
[Round "6.2"]
[White "Groenewoud, Joel"]
[Black "Darie, Aden"]
[Result "1-0"]
[TimeControl "90min/40moves + 30min + 30sec/move"]
[WhiteElo "2030"]
[BlackElo "1923"]

1. e4 {[%clk 01:30:57]} {[%emt 00:00:02]} c6 {[%clk 01:28:12]} {[%emt
00:02:41]} 2. d4 {[%clk 01:30:48]} {[%emt 00:00:46]} d5 {[%clk 01:28:36]}
{[%emt 00:00:07]} 3. e5 {[%clk 01:31:09]} {[%emt 00:00:09]} c5 {[%clk
01:28:59]} {[%emt 00:00:06]} 4. dxc5 {[%clk 01:31:08]} {[%emt 00:00:31]} e6
{[%clk 01:29:22]} {[%emt 00:00:07]} 5. c3 {[%clk 01:31:01]} {[%emt 00:00:38]}
Nc6 {[%clk 01:29:35]} {[%emt 00:00:15]} 6. Nf3 {[%clk 01:31:20]} {[%emt
00:00:12]} Bxc5 {[%clk 01:29:48]} {[%emt 00:00:15]} 7. b4 {[%clk 01:31:28]}
{[%emt 00:00:24]} Bb6 {[%clk 01:26:47]} {[%emt 00:03:30]} 8. b5 {[%clk
01:31:52]} {[%emt 00:00:07]} Nb8 {[%clk 01:19:01]} {[%emt 00:08:16]} 9. Bd3
{[%clk 01:29:41]} {[%emt 00:02:40]} Nd7 {[%clk 01:19:01]} {[%emt 00:00:31]} 10.
a4 {[%clk 01:26:46]} {[%emt 00:03:25]} Ne7 {[%clk 01:16:32]} {[%emt 00:02:56]}
11. O-O {[%clk 01:22:20]} {[%emt 00:05:00]} Ng6 {[%clk 01:16:43]} {[%emt
00:00:18]} 12. Re1 {[%clk 01:17:40]} {[%emt 00:05:10]} Qc7 {[%clk 01:14:31]}
{[%emt 00:02:41]} 13. Qe2 {[%clk 01:14:11]} {[%emt 00:04:01]} O-O {[%clk
01:13:21]} {[%emt 00:01:39]} 14. h4 {[%clk 01:10:11]} {[%emt 00:04:30]} Nc5
{[%clk 01:07:04]} {[%emt 00:06:46]} 15. h5 {[%clk 01:05:06]} {[%emt 00:05:35]}
Nxd3 {[%clk 01:06:51]} {[%emt 00:00:43]} 16. Qxd3 {[%clk 01:05:18]} {[%emt
00:00:19]} Ne7 {[%clk 01:06:20]} {[%emt 00:00:59]} 17. Ng5 {[%clk 01:03:07]}
{[%emt 00:02:41]} g6 {[%clk 01:06:25]} {[%emt 00:00:26]} 18. Qf3 {[%clk
00:56:04]} {[%emt 00:07:33]} Nf5 {[%clk 01:04:21]} {[%emt 00:02:33]} 19. g4
{[%clk 00:49:53]} {[%emt 00:06:43]} Ng7 {[%clk 01:04:42]} {[%emt 00:00:08]} 20.
Nd2 {[%clk 00:43:41]} {[%emt 00:06:41]} Ne8 {[%clk 00:51:42]} {[%emt 00:13:31]}
21. Nb3 {[%clk 00:41:30]} {[%emt 00:02:41]} f6 {[%clk 00:50:31]} {[%emt
00:01:41]} 22. Ba3 {[%clk 00:41:03]} {[%emt 00:00:57]} Rf7 {[%clk 00:46:49]}
{[%emt 00:04:12]} 23. Nxf7 {[%clk 00:41:02]} {[%emt 00:00:31]} Qxf7 {[%clk
00:47:14]} {[%emt 00:00:05]} 24. Rac1 {[%clk 00:37:19]} {[%emt 00:04:13]} a6
{[%clk 00:46:16]} {[%emt 00:01:29]} 25. Bc5 {[%clk 00:33:03]} {[%emt 00:04:46]}
Bc7 {[%clk 00:46:25]} {[%emt 00:00:21]} 26. exf6 {[%clk 00:31:55]} {[%emt
00:01:37]} Nxf6 {[%clk 00:46:41]} {[%emt 00:00:14]} 27. Bd4 {[%clk 00:30:31]}
{[%emt 00:01:54]} Nxg4 {[%clk 00:45:37]} {[%emt 00:01:35]} 28. Qxg4 {[%clk
00:26:25]} {[%emt 00:04:36]} e5 {[%clk 00:46:03]} {[%emt 00:00:04]} 29. Qg5
{[%clk 00:23:16]} {[%emt 00:03:38]} exd4 {[%clk 00:46:12]} {[%emt 00:00:22]} 30.
cxd4 {[%clk 00:21:17]} {[%emt 00:02:29]} axb5 {[%clk 00:39:36]} {[%emt
00:07:06]} 31. hxg6 {[%clk 00:18:51]} {[%emt 00:02:55]} hxg6 {[%clk 00:39:43]}
{[%emt 00:00:23]} 32. Rxc7 {[%clk 00:19:05]} {[%emt 00:00:16]} Qxf2+ {[%clk
00:38:43]} {[%emt 00:01:31]} 33. Kxf2 {[%clk 00:19:25]} {[%emt 00:00:11]} Bd7
{[%clk 00:39:07]} {[%emt 00:00:05]} 34. Qxg6+ {[%clk 00:19:45]} {[%emt
00:00:10]} Kf8 {[%clk 00:39:31]} {[%emt 00:00:06]} 35. Rxd7 {[%clk 00:20:05]}
{[%emt 00:00:10]} 1-0

[Event "NJSK 2024 C"]
[Site "Groningen, Netherlands"]
[Date "2024.05.01"]
[Round "6.3"]
[White "Kurt, Sascha"]
[Black "De Jong, Lode"]
[Result "1-0"]
[TimeControl "90min/40moves + 30min + 30sec/move"]
[WhiteElo "2096"]
[BlackElo "1587"]

1. e4 {[%clk 01:28:56]} {[%emt 00:01:33]} d6 {[%clk 01:30:56]} {[%emt
00:00:05]} 2. d4 {[%clk 01:29:03]} {[%emt 00:00:23]} Nf6 {[%clk 01:31:19]}
{[%emt 00:00:07]} 3. Nc3 {[%clk 01:29:28]} {[%emt 00:00:05]} g6 {[%clk
01:31:46]} {[%emt 00:00:03]} 4. Be2 {[%clk 01:29:47]} {[%emt 00:00:11]} Bg7
{[%clk 01:32:06]} {[%emt 00:00:09]} 5. h4 {[%clk 01:29:36]} {[%emt 00:00:42]}
c5 {[%clk 01:32:24]} {[%emt 00:00:13]} 6. dxc5 {[%clk 01:29:59]} {[%emt
00:00:07]} Qa5 {[%clk 01:32:43]} {[%emt 00:00:11]} 7. Bd2 {[%clk 01:30:20]}
{[%emt 00:00:09]} Qxc5 {[%clk 01:32:49]} {[%emt 00:00:24]} 8. h5 {[%clk
01:30:40]} {[%emt 00:00:09]} O-O {[%clk 01:32:30]} {[%emt 00:00:50]} 9. hxg6
{[%clk 01:30:59]} {[%emt 00:00:10]} fxg6 {[%clk 01:32:09]} {[%emt 00:00:52]} 10.
Be3 {[%clk 01:31:20]} {[%emt 00:00:09]} Qb4 {[%clk 01:28:35]} {[%emt 00:04:04]}
11. Qd3 {[%clk 01:30:46]} {[%emt 00:01:04]} Nc6 {[%clk 01:24:03]} {[%emt
00:05:01]} 12. a3 {[%clk 01:26:20]} {[%emt 00:04:57]} Qa5 {[%clk 01:21:41]}
{[%emt 00:02:52]} 13. Qc4+ {[%clk 01:17:57]} {[%emt 00:08:53]} e6 {[%clk
01:08:15]} {[%emt 00:13:56]} 14. O-O-O {[%clk 01:13:07]} {[%emt 00:05:19]} Rd8
{[%clk 01:07:24]} {[%emt 00:01:22]} 15. Nf3 {[%clk 01:00:25]} {[%emt 00:13:12]}
d5 {[%clk 00:57:34]} {[%emt 00:10:20]} 16. exd5 {[%clk 01:00:09]} {[%emt
00:00:45]} exd5 {[%clk 00:56:04]} {[%emt 00:02:00]} 17. Qh4 {[%clk 00:57:11]}
{[%emt 00:03:28]} h5 {[%clk 00:42:48]} {[%emt 00:13:46]} 18. Bd3 {[%clk
00:50:33]} {[%emt 00:07:09]} Ng4 {[%clk 00:32:26]} {[%emt 00:10:51]} 19. Bxg6
{[%clk 00:30:32]} {[%emt 00:20:32]} d4 {[%clk 00:31:50]} {[%emt 00:01:05]} 20.
Nxd4 {[%clk 00:29:57]} {[%emt 00:01:05]} Nxd4 {[%clk 00:31:42]} {[%emt
00:00:38]} 21. Bxd4 {[%clk 00:30:10]} {[%emt 00:00:17]} Rxd4 {[%clk 00:31:42]}
{[%emt 00:00:30]} 22. Rxd4 {[%clk 00:30:25]} {[%emt 00:00:15]} Bxd4 {[%clk
00:32:05]} {[%emt 00:00:07]} 23. Qe7 {[%clk 00:30:27]} {[%emt 00:00:28]} Nf6
{[%clk 00:28:44]} {[%emt 00:03:51]} 24. Qf7+ {[%clk 00:17:55]} {[%emt
00:13:03]} Kh8 {[%clk 00:29:03]} {[%emt 00:00:11]} 25. Qf8+ {[%clk 00:13:30]}
{[%emt 00:04:55]} Ng8 {[%clk 00:29:18]} {[%emt 00:00:14]} 26. Rxh5+ {[%clk
00:13:14]} {[%emt 00:00:47]} Qxh5 {[%clk 00:29:37]} {[%emt 00:00:10]} 27. Bxh5
{[%clk 00:13:42]} {[%emt 00:00:01]} Bg7 {[%clk 00:29:57]} {[%emt 00:00:10]} 28.
Qe8 {[%clk 00:13:41]} {[%emt 00:00:31]} Bh6+ {[%clk 00:29:59]} {[%emt
00:00:29]} 29. Kb1 {[%clk 00:14:03]} {[%emt 00:00:07]} Kg7 {[%clk 00:30:16]}
{[%emt 00:00:13]} 30. Bg4 {[%clk 00:12:06]} {[%emt 00:02:27]} Nf6 {[%clk
00:30:26]} {[%emt 00:00:20]} 31. Qe7+ {[%clk 00:12:17]} {[%emt 00:00:19]} Kg6
{[%clk 00:30:40]} {[%emt 00:00:16]} 32. Bxc8 {[%clk 00:12:30]} {[%emt
00:00:18]} Rxc8 {[%clk 00:31:03]} {[%emt 00:00:06]} 33. Ne4 {[%clk 00:12:15]}
{[%emt 00:00:45]} Rf8 {[%clk 00:31:16]} {[%emt 00:00:17]} 34. Qxb7 {[%clk
00:11:34]} {[%emt 00:01:12]} Nxe4 {[%clk 00:31:35]} {[%emt 00:00:11]} 35. Qxe4+
{[%clk 00:12:00]} {[%emt 00:00:03]} Kg7 {[%clk 00:31:59]} {[%emt 00:00:06]} 36.
Qd4+ {[%clk 00:12:10]} {[%emt 00:00:21]} Kg6 {[%clk 00:32:11]} {[%emt
00:00:17]} 37. g3 {[%clk 00:12:05]} {[%emt 00:00:35]} Rf7 {[%clk 00:32:34]}
{[%emt 00:00:06]} 38. f4 {[%clk 00:12:28]} {[%emt 00:00:08]} Bg7 {[%clk
00:32:58]} {[%emt 00:00:06]} 39. Qe4+ {[%clk 00:12:49]} {[%emt 00:00:09]} Kh6
{[%clk 00:33:20]} {[%emt 00:00:07]} 40. g4 {[%clk 00:13:02]} {[%emt 00:00:18]}
Bh8 {[%clk 00:33:33]} {[%emt 00:00:17]} 41. g5+ {[%clk 00:13:11]} {[%emt
00:00:21]} Kg7 {[%clk 00:33:47]} {[%emt 00:00:16]} 42. f5 {[%clk 00:13:25]}
{[%emt 00:00:16]} Kg8 {[%clk 00:33:58]} {[%emt 00:00:19]} 43. Qe8+ {[%clk
00:13:13]} {[%emt 00:00:42]} Rf8 {[%clk 00:34:04]} {[%emt 00:00:24]} 44. Qg6+
{[%clk 00:13:39]} {[%emt 00:00:04]} Bg7 {[%clk 00:34:28]} {[%emt 00:00:07]} 45.
f6 {[%clk 00:14:04]} {[%emt 00:00:04]} Rd8 {[%clk 00:34:40]} {[%emt 00:00:19]}
46. Qxg7# {[%clk 00:14:25]} {[%emt 00:00:09]} 1-0